bitfinex/quotes_BTCUSD_20240821
["timestamp","ask_amount","ask_price","bid_price","bid_amount"]
[1724275138491,0.08123101,61103.0,61102.0,3.88596462]
[1724275138688,0.08123101,61103.0,61102.0,3.81242498]
[1724275139122,0.08123101,61103.0,61102.0,3.86145745]
[1724275139312,0.08123101,61103.0,61102.0,3.81242498]
[1724275139929,0.14703101,61103.0,61102.0,2.5046673]
[1724275140143,0.14703101,61103.0,61102.0,2.4656673]
[1724275140913,0.14703101,61103.0,61102.0,1.5166673]
[1724275141114,0.14703101,61103.0,61102.0,2.61067292]
[1724275141290,0.14703101,61103.0,61102.0,2.56162498]
[1724275141491,0.14703101,61103.0,61102.0,2.61067249]
[1724275143425,0.14703101,61103.0,61102.0,1.26630398]
[1724275144081,0.14703101,61103.0,61102.0,1.16630398]
[1724275144279,0.14703101,61103.0,61102.0,1.15230398]
[1724275144467,0.14703101,61103.0,61102.0,1.13830398]
[1724275144871,0.14703101,61103.0,61102.0,1.15330398]
[1724275145334,0.14703101,61103.0,61102.0,1.14630398]
[1724275146231,0.14703101,61103.0,61102.0,1.14530398]
[1724275146436,0.14703101,61103.0,61102.0,1.15330398]
[1724275146751,0.14703101,61103.0,61102.0,1.14530398]
[1724275146951,0.14703101,61103.0,61102.0,1.15330398]
[1724275147613,0.14703101,61103.0,61102.0,1.14630398]
[1724275147770,0.14703101,61103.0,61102.0,1.15330398]
[1724275150483,0.14703101,61103.0,61102.0,1.26820398]
[1724275151138,0.14703101,61103.0,61102.0,1.26911148]
[1724275152906,0.14703101,61103.0,61102.0,0.99821148]
[1724275155238,0.14703101,61103.0,61102.0,1.11311148]
[1724275156549,0.00043101,61103.0,61102.0,1.44043248]
[1724275156741,0.00043101,61103.0,61102.0,1.48946391]
[1724275156876,0.00043101,61103.0,61102.0,4.33026048]
[1724275161336,0.00043101,61103.0,61102.0,2.23043248]
[1724275161538,0.00043101,61103.0,61102.0,2.06343248]
[1724275161837,0.14503101,61103.0,61102.0,1.91643248]
[1724275162199,0.14503101,61103.0,61102.0,1.89743248]
[1724275162602,0.14503101,61103.0,61102.0,1.63143248]
[1724275162801,0.14503101,61103.0,61102.0,1.76143248]
[1724275163008,0.14503101,61103.0,61102.0,1.68943248]
[1724275163210,0.14503101,61103.0,61102.0,0.99821148]
[1724275166519,0.00043101,61103.0,61102.0,1.91163248]
[1724275166925,0.00043101,61103.0,61102.0,2.06065741]
[1724275167157,0.00043101,61103.0,61102.0,2.33895348]
[1724275168850,0.00043101,61103.0,61102.0,2.41247383]
[1724275169463,0.00043101,61103.0,61102.0,2.70176593]
[1724275169617,0.00043101,61103.0,61102.0,3.03208523]
[1724275169819,0.00043101,61103.0,61102.0,3.05708523]
[1724275170050,0.00043101,61103.0,61102.0,3.17761914]
[1724275170383,0.00043101,61103.0,61102.0,3.17959776]
[1724275170570,0.00043101,61103.0,61102.0,3.45569776]
[1724275170788,0.00043101,61103.0,61102.0,3.46369776]
[1724275171194,0.00043101,61103.0,61102.0,3.47769776]
[1724275171401,0.00043101,61103.0,61102.0,3.35518523]
[1724275172231,0.00043101,61103.0,61102.0,3.35718523]
[1724275174262,0.00043101,61103.0,61102.0,2.90814421]
[1724275174466,0.00043101,61103.0,61102.0,5.79797221]
[1724275175542,0.00043101,61103.0,61102.0,7.05777221]
[1724275178213,0.00043101,61103.0,61102.0,7.05776991]
[1724275178787,0.00043101,61103.0,61102.0,7.38509091]
[1724275182674,0.00043101,61103.0,61102.0,7.3850865]
[1724275189029,0.00043101,61103.0,61102.0,7.50745285]
[1724275189266,0.00043101,61103.0,61102.0,7.3850865]
[1724275190731,0.00043101,61103.0,61102.0,7.2127865]
[1724275191219,0.00043101,61103.0,61102.0,7.31068271]
[1724275191460,0.00043101,61103.0,61102.0,7.2127865]
[1724275192195,0.00043101,61103.0,61102.0,7.21280183]
[1724275192679,0.00043101,61103.0,61102.0,7.13680183]
[1724275192917,0.00043101,61103.0,61102.0,6.78448083]
[1724275193406,0.00043101,61103.0,61102.0,6.78648083]
[1724275196973,0.00043101,61103.0,61102.0,6.78649365]
[1724275197518,0.00043101,61103.0,61102.0,6.82331938]
[1724275197773,0.00043101,61103.0,61102.0,6.72539365]
[1724275198259,0.00043101,61103.0,61102.0,6.82331938]
[1724275200416,0.00043101,61103.0,61102.0,6.72539365]
[1724275200856,0.00043101,61103.0,61102.0,6.72538731]
[1724275201755,0.00043101,61103.0,61102.0,7.00673057]
[1724275201975,0.00043101,61103.0,61102.0,6.88428731]
[1724275203204,0.00043101,61103.0,61102.0,6.80878731]
[1724275204745,0.00043101,61103.0,61102.0,6.80877543]
[1724275205141,0.00043101,61103.0,61102.0,6.74837543]
[1724275206547,0.08033101,61103.0,61102.0,6.74837543]
[1724275207147,0.00043101,61103.0,61102.0,6.74837543]
[1724275209226,0.00043101,61103.0,61102.0,6.38560248]
[1724275209424,0.00043101,61103.0,61102.0,6.74837674]
[1724275213575,1e-08,61103.0,61102.0,7.72387535]
[1724275213776,0.000825,61111.0,61110.0,1.770651]
[1724275213981,0.000825,61111.0,61110.0,5.40202201]
[1724275214403,0.000825,61111.0,61110.0,5.72930001]
[1724275214813,0.000825,61111.0,61110.0,5.73730001]
[1724275215437,0.000825,61111.0,61110.0,5.72930001]
[1724275216396,0.000825,61111.0,61110.0,6.07957801]
[1724275216596,1e-06,61112.0,61111.0,1.805001]
[1724275216799,1e-06,61112.0,61111.0,5.91277132]
[1724275217015,1e-06,61112.0,61111.0,6.24004432]
[1724275217676,1e-06,61112.0,61111.0,6.25404432]
[1724275217887,1e-06,61112.0,61111.0,6.24004432]
[1724275218337,1e-06,61112.0,61111.0,6.26804432]
[1724275218571,1e-06,61112.0,61111.0,6.40118618]
[1724275218919,1e-06,61112.0,61111.0,6.41518618]
[1724275219552,1e-06,61112.0,61111.0,6.25404432]
[1724275219802,1e-06,61112.0,61111.0,6.26804432]
[1724275219965,1e-06,61112.0,61111.0,5.74624501]
[1724275220171,1e-06,61114.0,61113.0,2.132203]
[1724275220373,0.0803,61124.0,61116.0,0.643169]
[1724275220576,0.0803,61124.0,61116.0,4.62478601]
[1724275220834,0.0803,61124.0,61116.0,5.27927801]
[1724275220984,0.0803,61124.0,61116.0,5.93377001]
[1724275221190,0.0658,61127.0,61116.0,5.93377001]
[1724275221191,0.0763,61127.0,61126.0,1.050982]
[1724275221519,0.0763,61127.0,61126.0,5.03054601]
[1724275221723,0.0763,61127.0,61126.0,5.35773901]
[1724275222275,0.0763,61127.0,61126.0,5.43124903]
[1724275222472,0.0763,61127.0,61126.0,5.068509]
[1724275222941,0.0763,61127.0,61126.0,5.06849283]
[1724275223324,0.0763,61127.0,61126.0,5.07049283]
[1724275223542,0.0763,61127.0,61126.0,4.99699898]
[1724275223728,0.0763,61127.0,61126.0,5.00899898]
[1724275223928,0.0763,61127.0,61126.0,5.02299898]
[1724275224485,0.08346,61133.0,61132.0,1.47222]
[1724275224695,0.08346,61133.0,61132.0,1.75102298]
[1724275225132,0.08346,61133.0,61132.0,4.64085098]
[1724275226765,0.08346,61133.0,61132.0,4.66885098]
[1724275226968,0.08346,61133.0,61132.0,4.76885098]
[1724275227423,0.08346,61133.0,61132.0,4.77893634]
[1724275229294,0.08346,61133.0,61132.0,4.66413634]
[1724275229509,0.08346,61133.0,61132.0,4.77893634]
[1724275234188,0.00826,61133.0,61132.0,4.77893634]
[1724275234413,0.00826,61133.0,61132.0,5.27329634]
[1724275234818,0.00826,61133.0,61132.0,5.25029634]
[1724275235284,0.00826,61133.0,61132.0,5.25229634]
[1724275237838,0.00826,61133.0,61132.0,2.36246834]
[1724275238043,0.00826,61133.0,61132.0,5.25229634]
[1724275239802,0.00826,61133.0,61132.0,5.23829634]
[1724275240009,0.00826,61133.0,61132.0,5.30127161]
[1724275240201,0.00826,61133.0,61132.0,5.23829634]
[1724275240654,0.00826,61133.0,61132.0,5.25229634]
[1724275240864,0.00826,61133.0,61132.0,5.23829634]
[1724275241279,0.00826,61133.0,61132.0,5.25229634]
[1724275241483,0.00826,61133.0,61132.0,5.22429634]
[1724275241858,0.00826,61133.0,61132.0,5.25229634]
[1724275242305,0.00826,61133.0,61132.0,5.28715013]
[1724275242636,0.00826,61133.0,61132.0,5.30115013]
[1724275243065,0.00826,61133.0,61132.0,5.25229634]
[1724275243886,0.00826,61133.0,61132.0,5.30115019]
[1724275244091,0.00826,61133.0,61132.0,5.20635019]
[1724275244293,0.00826,61133.0,61132.0,5.15749634]
[1724275244494,0.00826,61133.0,61132.0,5.19234945]
[1724275244877,0.00826,61133.0,61132.0,5.22034945]
[1724275245251,0.00826,61133.0,61132.0,5.17149634]
[1724275245462,0.00826,61133.0,61132.0,5.22035321]
[1724275247713,0.00826,61133.0,61132.0,5.15995321]
[1724275248895,0.00826,61133.0,61132.0,5.04115321]
[1724275249090,0.00826,61133.0,61132.0,5.15595321]
[1724275249294,0.00826,61133.0,61132.0,5.30015321]
[1724275250402,0.00826,61133.0,61132.0,5.22065321]
[1724275250584,0.00826,61133.0,61132.0,5.15795321]
[1724275251417,0.00826,61133.0,61132.0,5.10909634]
[1724275252172,0.00826,61133.0,61132.0,5.11109634]
[1724275252522,0.00826,61133.0,61132.0,5.19059634]
[1724275252720,0.00826,61133.0,61132.0,5.11109634]
[1724275253451,0.00826,61133.0,61132.0,5.10909634]
[1724275254097,0.01710552,61143.0,61132.0,5.10909634]
[1724275254282,0.1,61176.0,61132.0,5.10909634]
[1724275254451,0.14551371,61193.0,61135.0,0.002]
[1724275254628,0.16370293,61201.0,61135.0,0.002]
[1724275254832,0.23873344,61218.0,61135.0,0.002]
[1724275255131,0.85039536,61257.0,61135.0,0.002]
[1724275255347,0.7827,61278.0,61135.0,0.002]
[1724275255348,0.1802,61289.0,61241.0,0.0018]
[1724275255569,2.41782575,61384.0,61294.0,0.001]
[1724275255570,0.65620352,61384.0,61294.0,0.001]
[1724275255841,0.12141587,61422.0,61256.0,1.603141]
[1724275255842,0.0480226,61454.0,61417.0,1.339747]
[1724275256060,0.08254058,61469.0,61454.0,0.41922815]
[1724275256258,0.0812933,61452.0,61425.0,0.04788605]
[1724275256531,0.004,61453.0,61433.0,0.48945355]
[1724275256532,0.08128462,61441.0,61433.0,0.48945355]
[1724275256757,0.08193623,61428.0,61425.0,0.1]
[1724275256994,1.6815,61440.0,61425.0,0.1]
[1724275256995,1.2705,61427.0,61425.0,0.1]
[1724275257198,0.1396,61426.0,61418.0,0.1436383]
[1724275257424,0.1396,61426.0,61419.0,0.46100267]
[1724275257640,1.2705,61425.0,61424.0,0.07124639]
[1724275257900,1.2705,61425.0,61422.0,0.04749956]
[1724275258325,1.2705,61425.0,61424.0,0.04749956]
[1724275258533,1.2705,61425.0,61424.0,0.36102912]
[1724275258534,0.82323938,61425.0,61424.0,0.36102912]
[1724275258757,0.73589118,61425.0,61417.0,0.1]
[1724275258971,0.67165724,61425.0,61418.0,0.88800298]
[1724275259199,0.10757008,61424.0,61423.0,0.03]
[1724275259425,0.0812933,61452.0,61430.0,0.03]
[1724275259637,0.001,61459.0,61430.0,0.03]
[1724275259638,0.08165193,61450.0,61430.0,0.03]
[1724275259841,0.0819015,61449.0,61431.0,0.16400298]
[1724275260053,0.001,61447.0,61425.0,0.49229154]
[1724275260263,0.0607,61450.0,61441.0,0.49229154]
[1724275260442,0.0607,61450.0,61426.0,0.949]
[1724275260443,0.0607,61450.0,61444.0,0.2]
[1724275260684,0.002,61479.0,61444.0,0.2]
[1724275260685,0.0041684,61470.0,61444.0,0.2]
[1724275260897,0.0041684,61470.0,61446.0,0.162743]
[1724275261099,0.0001,61470.0,61447.0,0.16400298]
[1724275261307,0.0001,61470.0,61448.0,0.325475]
[1724275261517,0.0001,61470.0,61449.0,0.98600298]
[1724275261720,0.16400298,61469.0,61450.0,0.596]
[1724275261902,0.00406845,61468.0,61451.0,0.262]
[1724275262106,0.0001,61470.0,61451.0,0.262]
[1724275262107,0.0001,61470.0,61451.0,0.42600298]
[1724275262311,0.0789,61469.0,61452.0,1.71]
[1724275262512,0.0786,61469.0,61452.0,1.71]
[1724275263165,0.0786,61469.0,61453.0,0.217]
[1724275263372,0.0786,61469.0,61466.0,0.2]
[1724275263609,0.0001,61470.0,61469.0,0.162683]
[1724275263815,0.0001,61470.0,61469.0,0.75205298]
[1724275264023,0.0001,61470.0,61469.0,0.16400298]
[1724275264465,0.0001,61470.0,61459.0,0.2]
[1724275264466,0.16410298,61470.0,61443.0,0.82602575]
[1724275264672,0.16400298,61468.0,61444.0,0.49229154]
[1724275264877,0.16400298,61468.0,61447.0,0.166741]
[1724275264878,0.00082132,61467.0,61447.0,0.166741]
[1724275265079,0.16400298,61466.0,61447.0,0.16400298]
[1724275265286,0.00082132,61466.0,61450.0,0.03]
[1724275265475,0.0789,61465.0,61450.0,0.03]
[1724275265742,0.0789,61465.0,61451.0,1.08400298]
[1724275265946,0.023,61464.0,61452.0,2.331]
[1724275266169,0.1878243,61464.0,61436.0,0.003]
[1724275266372,0.162709,61460.0,61442.0,0.49229154]
[1724275266582,0.18700298,61459.0,61436.0,0.004]
[1724275266794,0.18700298,61459.0,61436.0,0.003]
[1724275266795,0.00082132,61458.0,61436.0,0.003]
[1724275266998,0.162723,61454.0,61436.0,0.003]
[1724275267207,0.16273,61452.0,61436.0,0.003]
[1724275267415,0.3505573,61451.0,61436.0,0.003]
[1724275267625,0.1607,61450.0,61427.0,0.162793]
[1724275267836,0.2667243,61449.0,61426.0,0.81788354]
[1724275268045,0.2667243,61449.0,61429.0,0.162787]
[1724275268253,0.2667243,61449.0,61431.0,0.162783]
[1724275268468,0.2667243,61449.0,61429.0,0.002]
[1724275268676,0.4294603,61449.0,61429.0,0.162788]
[1724275268900,0.4294603,61449.0,61430.0,0.162786]
[1724275268901,0.2667243,61449.0,61430.0,0.162786]
[1724275269359,0.2667243,61449.0,61431.0,0.162783]
[1724275269568,0.2667243,61449.0,61433.0,0.003]
[1724275269777,0.4294613,61449.0,61431.0,0.162783]
[1724275269986,0.4294613,61449.0,61429.0,0.004]
[1724275269987,0.4294613,61449.0,61429.0,0.166788]
[1724275270202,0.26590298,61449.0,61435.0,0.001]
[1724275270435,0.26590298,61449.0,61430.0,0.325571]
[1724275270436,0.26590298,61449.0,61437.0,0.162765]
[1724275270658,0.26590298,61449.0,61431.0,0.002]
[1724275270868,0.00082132,61448.0,61431.0,0.162783]
[1724275271083,0.16400298,61436.0,61402.0,0.004]
[1724275271299,0.16400298,61433.0,61408.0,0.49229154]
[1724275271501,0.16400298,61433.0,61390.0,0.03]
[1724275271502,0.16279,61429.0,61412.0,0.162833]
[1724275271707,0.48956098,61433.0,61395.0,0.004]
[1724275271708,0.02382132,61428.0,61395.0,0.004]
[1724275271921,0.075,61424.0,61396.0,0.16400298]
[1724275272127,0.16400298,61422.0,61397.0,0.325744]
[1724275272343,0.16400298,61421.0,61383.0,0.03]
[1724275272575,0.075,61414.0,61384.0,0.49229154]
[1724275272799,0.00082132,61413.0,61372.0,0.2]
[1724275273067,0.162857,61404.0,61384.0,0.325816]
[1724275273280,0.02382132,61403.0,61386.0,0.162903]
[1724275273498,0.02382132,61403.0,61373.0,0.16800298]
[1724275273720,0.023,61408.0,61387.0,0.002]
[1724275273932,0.18700298,61413.0,61405.0,0.162851]
[1724275274141,0.086,61405.0,61401.0,0.325725]
[1724275274353,0.086,61405.0,61404.0,0.162855]
[1724275274562,0.18700298,61413.0,61400.0,0.325731]
[1724275274778,0.00082132,61412.0,61390.0,0.1]
[1724275274991,0.16400298,61411.0,61391.0,0.16400298]
[1724275275204,0.0255,61409.0,61392.0,0.1]
[1724275275430,0.1878243,61408.0,61391.0,0.325778]
[1724275275645,0.1878243,61408.0,61380.0,0.004]
[1724275275886,0.162862,61402.0,61381.0,0.16400298]
[1724275276112,0.162872,61398.0,61381.0,0.162914]
[1724275276335,0.1648243,61397.0,61381.0,0.162914]
[1724275276549,0.1878243,61397.0,61381.0,0.162914]
[1724275276786,0.1878243,61397.0,61378.0,0.325847]
[1724275277011,0.1878243,61397.0,61384.0,0.162907]
[1724275277220,0.18700298,61397.0,61382.0,0.162913]
[1724275277445,0.18700298,61397.0,61383.0,0.26291]
[1724275278069,0.18700298,61397.0,61383.0,0.1]
[1724275278271,0.18700298,61397.0,61382.0,0.262914]
[1724275278474,0.2187,61396.0,61383.0,0.16291]
[1724275278681,0.1878243,61395.0,61382.0,0.1]
[1724275278892,0.18700298,61395.0,61381.0,0.262915]
[1724275279102,0.18700298,61395.0,61383.0,0.162911]
[1724275279309,0.00082132,61394.0,61370.0,0.325887]
[1724275279517,0.32688798,61393.0,61378.0,0.162923]
[1724275279739,0.02382132,61392.0,61376.0,0.162928]
[1724275279944,0.32689298,61391.0,61375.0,0.162931]
[1724275280171,0.02382132,61390.0,61376.0,0.162929]
[1724275280383,0.162899,61388.0,61373.0,0.162936]
[1724275280647,0.02382132,61387.0,61372.0,0.325878]
[1724275280823,0.00082132,61387.0,61375.0,0.162932]
[1724275281052,0.023,61386.0,61373.0,0.162936]
[1724275281284,0.023,61386.0,61373.0,0.003]
[1724275281285,0.00082132,61385.0,61373.0,0.003]
[1724275281491,0.162902,61387.0,61373.0,0.165936]
[1724275281712,0.162909,61384.0,61371.0,0.162943]
[1724275281952,0.162909,61384.0,61368.0,0.009031]
[1724275281953,0.16400298,61384.0,61368.0,0.009031]
[1724275282155,0.16400298,61384.0,61370.0,0.162944]
[1724275282363,0.162915,61382.0,61368.0,0.17198]
[1724275282573,0.162917,61381.0,61368.0,0.009031]
[1724275282776,0.16400298,61382.0,61368.0,0.171981]
[1724275282993,0.162923,61379.0,61368.0,0.009031]
[1724275283408,0.162921,61380.0,61372.0,0.0009042]
[1724275283665,0.162925,61378.0,61372.0,0.0009042]
[1724275283915,0.16400298,61379.0,61372.0,0.0009042]
[1724275284161,0.2442,61378.0,61372.0,0.0009042]
[1724275284403,0.162928,61377.0,61372.0,0.0009042]
[1724275284884,0.16400298,61376.0,61372.0,0.0009042]
[1724275285132,0.162934,61375.0,61372.0,0.0009042]
[1724275285384,0.32693698,61375.0,61372.0,0.0009042]
[1724275286422,0.16400298,61375.0,61372.0,0.0009042]
[1724275287101,0.162972,61361.0,61330.0,0.065274]
[1724275287306,0.16500298,61373.0,61332.0,0.16400298]
[1724275287307,0.16400298,61360.0,61332.0,0.16400298]
[1724275287514,0.2187,61359.0,61332.0,0.16400298]
[1724275287742,0.325971,61355.0,61340.0,0.163024]
[1724275287952,0.0255,61353.0,61338.0,0.326058]
[1724275288158,0.16400298,61352.0,61320.0,0.004]
[1724275288334,0.16400298,61352.0,61331.0,0.163048]
[1724275288335,0.163016,61344.0,61331.0,0.163048]
[1724275288579,0.32701998,61344.0,61331.0,0.163048]
[1724275288788,0.16400298,61344.0,61331.0,0.163048]
[1724275289005,0.16400298,61344.0,61329.0,0.163054]
[1724275289006,0.163023,61341.0,61329.0,0.163054]
[1724275289213,0.163023,61341.0,61321.0,0.002]
[1724275289214,0.163024,61341.0,61325.0,0.326128]
[1724275289418,0.163025,61341.0,61328.0,0.163056]
[1724275289630,0.163025,61341.0,61330.0,0.163052]
[1724275289836,0.16400298,61344.0,61325.0,0.326128]
[1724275289837,0.163026,61340.0,61327.0,0.326119]
[1724275290046,0.326038,61343.0,61329.0,0.163053]
[1724275290262,0.326038,61343.0,61330.0,0.163052]
[1724275290475,0.49004098,61343.0,61328.0,0.326114]
[1724275290686,0.16400298,61342.0,61324.0,0.326133]
[1724275290891,0.16400298,61342.0,61321.0,0.003]
[1724275291167,0.49004598,61342.0,61326.0,0.163062]
[1724275291419,0.163031,61338.0,61326.0,0.163062]
[1724275291671,0.32703398,61338.0,61326.0,0.163062]
[1724275292159,0.163034,61337.0,61326.0,0.163062]
[1724275292537,0.16400298,61338.0,61326.0,0.163062]
[1724275292538,0.32703598,61338.0,61326.0,0.163062]
[1724275292795,0.16400298,61337.0,61327.0,0.163059]
[1724275292979,0.32703598,61337.0,61325.0,0.326131]
[1724275293190,0.16400298,61337.0,61323.0,0.326141]
[1724275293393,0.32703798,61337.0,61326.0,0.163061]
[1724275293716,0.16400298,61337.0,61327.0,0.16306]
[1724275293924,0.2169,61336.0,61326.0,0.163061]
[1724275294287,0.32704298,61335.0,61323.0,0.163068]
[1724275294520,0.32704298,61335.0,61324.0,0.163067]
[1724275294703,0.163042,61334.0,61322.0,0.163071]
[1724275294944,0.16400298,61333.0,61323.0,0.16307]
[1724275295148,0.16400298,61333.0,61323.0,0.163068]
[1724275295353,0.16400298,61333.0,61326.0,0.0009042]
[1724275297265,0.16305,61331.0,61326.0,0.0009042]
[1724275297477,0.16400298,61330.0,61326.0,0.0009042]
[1724275298107,0.32705498,61330.0,61326.0,0.0009042]
[1724275298318,0.32705598,61330.0,61326.0,0.0009042]
[1724275298547,0.16400298,61330.0,61326.0,0.0009042]
[1724275299815,0.023,61329.0,61326.0,0.0009042]
[1724275300021,0.16400298,61328.0,61326.0,0.0009042]
[1724275300432,0.023,61327.0,61326.0,0.0009042]
[1724275300640,0.18700298,61327.0,61326.0,0.0009042]
[1724275301891,0.18700298,61327.0,61314.0,0.3436487]
[1724275301892,0.32618,61316.0,61314.0,0.0164597]
[1724275302098,0.65327898,61315.0,61314.0,0.0164597]
[1724275302305,0.97946298,61315.0,61314.0,0.0164597]
[1724275302525,1.00246298,61315.0,61314.0,0.0164597]
[1724275302749,1.24266298,61315.0,61314.0,0.0164597]
[1724275302971,1.28156298,61315.0,61314.0,0.0164597]
[1724275303428,0.40420298,61315.0,61314.0,0.0164597]
[1724275304713,0.42720298,61315.0,61314.0,0.0164597]
[1724275305128,0.59029498,61315.0,61314.0,0.0164597]
[1724275308061,0.326138,61324.0,61314.0,0.0164597]
[1724275308062,0.2402,61324.0,61314.0,0.0164597]
[1724275308266,0.16400298,61323.0,61314.0,0.0174597]
[1724275308482,0.2402,61324.0,61319.0,0.16308]
[1724275308681,0.40420298,61324.0,61315.0,0.326184]
[1724275308909,0.40420298,61324.0,61318.0,0.326168]
[1724275309114,0.40420298,61324.0,61318.0,0.48925]
[1724275309328,0.40420298,61324.0,61319.0,0.16308]
[1724275310695,0.40420298,61324.0,61318.0,0.163083]
[1724275310896,0.40420298,61324.0,61319.0,0.16308]
[1724275311281,0.16400298,61323.0,61314.0,0.0164597]
[1724275311481,0.18700298,61323.0,61314.0,0.0164597]
[1724275311691,0.18700298,61323.0,61315.0,0.326183]
[1724275311885,0.18700298,61323.0,61316.0,0.163088]
[1724275314019,0.18700298,61323.0,61317.0,0.163086]
[1724275315468,0.18700298,61323.0,61314.0,0.0164597]
[1724275315719,0.18700298,61323.0,61314.0,0.1795527]
[1724275315941,0.18700298,61323.0,61315.0,0.163091]
[1724275316417,0.18700298,61323.0,61314.0,0.1795537]
[1724275317115,0.18700298,61323.0,61321.0,0.0963641]
[1724275317622,0.35007398,61323.0,61318.0,0.12045512]
[1724275318797,0.51314898,61323.0,61318.0,0.12045512]
[1724275319005,0.326149,61322.0,61318.0,0.12045512]
[1724275319184,0.35008098,61321.0,61314.0,0.0173903]
[1724275319395,0.16308,61320.0,61314.0,0.0173903]
[1724275319593,0.32708298,61320.0,61314.0,0.0173903]
[1724275320431,0.163085,61318.0,61314.0,0.0173903]
[1724275320987,0.163087,61317.0,61314.0,0.0173903]
[1724275321196,0.163086,61317.0,61314.0,0.0173903]
[1724275321856,0.489276,61315.0,61314.0,0.0173903]
[1724275322090,0.65327898,61315.0,61314.0,0.37910085]
[1724275322318,0.67627898,61315.0,61314.0,0.37910085]
[1724275322711,1.00246298,61315.0,61314.0,0.37910085]
[1724275323127,0.35009498,61315.0,61314.0,0.37910085]
[1724275323347,0.326953,61326.0,61314.0,0.37910085]
[1724275323348,0.000823,61326.0,61314.0,0.37910085]
[1724275323566,0.0399,61337.0,61321.0,0.07254138]
[1724275323763,0.0399,61337.0,61322.0,0.04835991]
[1724275323764,0.16400298,61323.0,61322.0,0.04835991]
[1724275323965,0.35007298,61323.0,61322.0,0.04835991]
[1724275324376,0.35007298,61323.0,61319.0,0.04835991]
[1724275324510,0.023,61322.0,61321.0,0.04835991]
[1724275324708,0.35007598,61322.0,61321.0,0.04835991]
[1724275325194,0.18700298,61322.0,61321.0,0.04835991]
[1724275325402,0.18700298,61322.0,61318.0,0.04835991]
[1724275325579,0.16400298,61321.0,61318.0,0.04835991]
[1724275325813,0.16400298,61321.0,61320.0,0.04835991]
[1724275326015,0.18700298,61321.0,61320.0,0.04835991]
[1724275326291,0.18700298,61321.0,61320.0,0.04842962]
[1724275326495,0.18700298,61321.0,61320.0,0.0484594]
[1724275327299,0.18700298,61321.0,61320.0,1.3082594]
[1724275329533,0.18700298,61321.0,61320.0,1.2598]
[1724275329732,0.18700298,61321.0,61320.0,1.3083743]
[1724275329926,0.18700298,61321.0,61320.0,1.2598]
[1724275333570,0.18700298,61321.0,61320.0,1.71882809]
[1724275334031,0.000823,61326.0,61320.0,1.88190509]
[1724275334236,0.000823,61326.0,61325.0,0.28475564]
[1724275334450,0.000823,61326.0,61325.0,0.85087158]
[1724275334655,0.1,61338.0,61332.0,0.163046]
[1724275334862,0.1,61338.0,61325.0,1.62065258]
[1724275334863,0.16400298,61337.0,61336.0,0.07318613]
[1724275335111,0.16400298,61337.0,61336.0,0.45918309]
[1724275335542,0.16400298,61337.0,61336.0,0.43475328]
[1724275335715,0.16400298,61337.0,61336.0,0.43475763]
[1724275335908,0.16400298,61337.0,61336.0,0.36156095]
[1724275336202,0.01700896,61357.0,61356.0,0.569183]
[1724275336410,0.01700896,61357.0,61356.0,1.48911798]
[1724275336599,0.000822,61368.0,61367.0,0.81577]
[1724275336802,0.000822,61368.0,61367.0,1.8430919]
[1724275337003,0.000822,61368.0,61367.0,1.8354149]
[1724275337220,0.000822,61368.0,61367.0,3.4497229]
[1724275337423,0.000822,61368.0,61367.0,3.42526634]
[1724275337598,0.000822,61368.0,61367.0,3.40074553]
[1724275338369,0.000822,61368.0,61367.0,3.3363949]
[1724275338586,0.000822,61368.0,61367.0,2.97497484]
[1724275338834,0.241,61398.0,61387.0,0.1629]
[1724275339191,0.241,61398.0,61387.0,0.1659]
[1724275339566,0.162851,61406.0,61387.0,0.1659]
[1724275339778,0.241,61405.0,61387.0,0.491701]
[1724275340177,0.241,61405.0,61387.0,1.53470598]
[1724275340308,0.241,61405.0,61387.0,1.63470598]
[1724275340510,0.241,61405.0,61387.0,0.3893]
[1724275340697,0.241,61405.0,61387.0,0.32890298]
[1724275340898,0.382433,61413.0,61387.0,0.51080298]
[1724275341123,0.01700896,61411.0,61387.0,1.26240498]
[1724275341394,0.49229154,61416.0,61403.0,0.162858]
[1724275341843,0.49229154,61416.0,61403.0,0.488574]
[1724275342016,0.01700896,61422.0,61403.0,0.81429]
[1724275342222,0.01700896,61422.0,61403.0,0.81529]
[1724275342421,0.01700896,61422.0,61403.0,0.91529]
[1724275342768,0.01700896,61422.0,61403.0,2.05128117]
[1724275342978,0.01700896,61422.0,61403.0,2.05328117]
[1724275343187,0.325524,61440.0,61403.0,2.05328117]
[1724275343188,0.2281,61445.0,61429.0,0.162789]
[1724275343403,0.01700896,61437.0,61429.0,0.75637098]
[1724275343617,0.49229154,61442.0,61429.0,1.08194998]
[1724275343828,0.49229154,61442.0,61422.0,0.001]
[1724275344029,0.65504654,61442.0,61424.0,0.325604]
[1724275344251,0.162759,61441.0,61423.0,0.325608]
[1724275344454,0.162759,61441.0,61422.0,0.004]
[1724275344455,0.49229154,61442.0,61427.0,0.162793]
[1724275344659,0.01700896,61454.0,61429.0,0.490368]
[1724275344859,0.2281,61453.0,61429.0,0.75437098]
[1724275345069,0.2281,61453.0,61429.0,1.07994998]
[1724275345290,0.01700896,61454.0,61429.0,1.30114998]
[1724275345442,0.01700896,61454.0,61429.0,2.02572898]
[1724275345659,0.000821,61470.0,61442.0,0.2222]
[1724275345856,0.49229154,61462.0,61461.0,0.488113]
[1724275346058,0.49229154,61462.0,61461.0,0.162704]
[1724275346336,1.30362,61466.0,61461.0,0.16400298]
[1724275346545,1.30362,61466.0,61465.0,0.162694]
[1724275346752,1.30362,61466.0,61459.0,0.004]
[1724275346966,1.30362,61466.0,61459.0,0.26400298]
[1724275347173,1.30362,61466.0,61461.0,0.325409]
[1724275347381,1.30362,61466.0,61461.0,0.48941198]
[1724275347595,1.30362,61466.0,61459.0,0.1]
[1724275347596,1.30362,61466.0,61465.0,0.162694]
[1724275347801,1.30362,61466.0,61465.0,0.65208498]
[1724275348253,1.30362,61466.0,61449.0,0.1]
[1724275348508,0.325407,61462.0,61441.0,0.325511]
[1724275348770,0.16400298,61465.0,61451.0,0.162728]
[1724275349042,0.48939598,61465.0,61445.0,0.162747]
[1724275349288,0.48939598,61465.0,61441.0,0.325514]
[1724275349289,0.162705,61461.0,61441.0,0.325514]